bitfinex-derivatives/quotes_BTCF0:USTF0_20210109
["timestamp","ask_amount","ask_price","bid_price","bid_amount"]
[1610180904406,2.9292,39554.0,39534.0,0.08954]
[1610180904805,0.00743141,39553.0,39534.0,0.08954]
[1610180905005,0.00743141,39553.0,39531.0,3.7583]
[1610180905204,0.00742861,39552.0,39531.0,3.7583]
[1610180905606,0.00742359,39548.0,39531.0,3.7583]
[1610180906009,0.0074265,39550.0,39531.0,3.7583]
[1610180906206,0.0074265,39550.0,39541.0,0.13632608]
[1610180906407,0.00742927,39551.0,39541.0,0.13632608]
[1610180906606,0.00742927,39551.0,39526.0,0.09135]
[1610180906807,0.00742779,39549.0,39526.0,0.09135]
[1610180907014,3.6402,39544.0,39526.0,0.09135]
[1610180907212,3.73058,39544.0,39517.0,3.4562]
[1610180908411,3.73058,39544.0,39535.0,0.13632608]
[1610180908809,0.09038,39544.0,39535.0,0.13632608]
[1610180909812,0.09038,39544.0,39542.0,4.0309]
[1610180910411,0.09038,39544.0,39543.0,0.13632608]
[1610180911218,0.08001,39556.0,39543.0,0.13632608]
[1610180911415,0.02222411,39558.0,39543.0,0.13632608]
[1610180911616,0.00745946,39559.0,39543.0,0.13632608]
[1610180912316,0.00745925,39560.0,39558.0,0.13632608]
[1610180913120,0.0074628,39561.0,39558.0,0.13632608]
[1610180913923,0.02223637,39561.0,39558.0,0.13632608]
[1610180914322,0.13632608,39559.0,39558.0,0.13632608]
[1610180914621,0.25225608,39559.0,39558.0,0.13632608]
[1610180916324,0.25225608,39559.0,39554.0,0.13632608]
[1610180917326,0.00745667,39558.0,39542.0,4.0309]
[1610180917726,0.02222209,39558.0,39542.0,4.0309]
[1610180918126,0.02221339,39557.0,39542.0,4.0309]
[1610180918325,0.02221339,39557.0,39548.0,0.13632608]
[1610180918526,0.02221339,39557.0,39532.0,0.11718]
[1610180918727,3.30705245,39556.0,39527.0,3.7148]
[1610180919128,0.00744897,39554.0,39527.0,3.7148]
[1610180919527,0.00744837,39553.0,39527.0,3.7148]
[1610180919926,0.02219597,39552.0,39527.0,3.7148]
[1610180920326,0.00744433,39550.0,39539.0,0.13632608]
[1610180920526,0.12212433,39550.0,39539.0,0.13632608]
[1610180921128,0.11468,39550.0,39539.0,0.13632608]
[1610180921328,0.11468,39550.0,39539.0,4.37932608]
[1610180922431,0.11468,39550.0,39549.0,0.13632608]
[1610180925634,0.13632608,39554.0,39549.0,0.13632608]
[1610180926335,0.13632608,39554.0,39553.0,0.13632608]
[1610180929137,0.13632608,39554.0,39539.0,4.243]
[1610180929538,0.13632608,39554.0,39540.0,0.00022182]
[1610180930041,0.13632608,39554.0,39539.0,4.243]
[1610180930340,0.00740475,39555.0,39547.0,0.13632608]
[1610180930840,0.00740648,39556.0,39548.0,0.00022183]
[1610180931343,0.00740977,39557.0,39548.0,0.00022183]
[1610180932042,0.00741057,39558.0,39552.0,2.8878]
[1610180932343,0.00741057,39558.0,39555.0,0.13632608]
[1610180932541,0.13060583,39559.0,39555.0,0.13632608]
[1610180932542,0.11593,39559.0,39555.0,0.13632608]
[1610180932742,0.00741468,39561.0,39555.0,0.13632608]
[1610180932941,0.00741619,39562.0,39555.0,0.13632608]
[1610180933741,0.00030857,39561.0,39555.0,0.13632608]
[1610180933942,0.00740805,39559.0,39555.0,0.13632608]
[1610180934444,0.13632608,39556.0,39555.0,0.13632608]
[1610180935044,0.13632608,39556.0,39547.0,3.5168]
[1610180935445,0.13632608,39556.0,39548.0,0.00022181]
[1610180936446,0.13632608,39549.0,39548.0,0.13654789]
[1610180937846,0.13632608,39549.0,39548.0,0.00022181]
[1610180938247,0.13632608,39549.0,39537.0,3.4928]
[1610180938448,0.13632608,39540.0,39539.0,0.13632608]
[1610180938848,0.13632608,39540.0,39539.0,0.13654791]
[1610180939248,0.13632608,39540.0,39539.0,0.00022183]
[1610180939850,0.13632608,39540.0,39538.0,0.00022183]
[1610180941252,0.13632608,39540.0,39535.0,0.00022185]
[1610180942254,0.73182608,39540.0,39535.0,0.00022185]
[1610180942454,0.13632608,39536.0,39535.0,0.00022185]
[1610180943858,4.36592608,39536.0,39535.0,0.00022185]
[1610180948061,4.36592608,39536.0,39522.0,0.00948106]
[1610180948260,4.36592608,39536.0,39535.0,0.00022183]
[1610180948462,4.36592608,39536.0,39523.0,0.13654791]
[1610180948762,4.36592608,39536.0,39523.0,0.13632608]
[1610180949161,4.36592608,39536.0,39524.0,0.00022186]
[1610180950264,0.13632608,39536.0,39519.0,0.00022188]
[1610180950465,4.1475,39525.0,39519.0,0.00022188]
[1610180950663,0.13632608,39520.0,39515.0,0.13632608]
[1610180950863,3.9925,39516.0,39515.0,0.13632608]
[1610180951064,0.13632608,39520.0,39502.0,0.10959]
[1610180951263,3.081,39513.0,39502.0,0.10959]
[1610180951663,3.081,39513.0,39503.0,0.00948546]
[1610180952062,3.081,39513.0,39503.0,0.00022191]
[1610180952264,3.081,39513.0,39504.0,0.00022191]
[1610180952664,3.081,39513.0,39503.0,0.00926398]
[1610180952665,3.081,39513.0,39505.0,0.13632608]
[1610180953067,3.081,39513.0,39506.0,0.00948616]
[1610180954668,0.13632608,39507.0,39506.0,0.00948616]
[1610180955168,0.13632608,39507.0,39506.0,0.00022191]
[1610180955872,0.13632608,39507.0,39506.0,0.00022192]
[1610180956473,0.13632608,39507.0,39505.0,0.13632608]
[1610180956673,0.13632608,39507.0,39506.0,0.00022192]
[1610180963486,0.13632608,39507.0,39503.0,0.00022194]
[1610180963685,0.13632608,39507.0,39506.0,0.00022194]
[1610180964084,0.13632608,39507.0,39504.0,0.00022194]
[1610180964284,0.13632608,39507.0,39503.0,0.00022194]
[1610180964485,0.13632608,39507.0,39505.0,0.00022194]
[1610180964885,0.54532608,39507.0,39506.0,0.13632608]
[1610180965286,0.54532608,39507.0,39506.0,0.136548]
[1610180967288,0.13632608,39507.0,39506.0,0.136548]
[1610180967489,0.2951,39524.0,39506.0,3.37781205]
[1610180967888,0.2951,39524.0,39507.0,0.03750892]
[1610180968088,3.9441,39527.0,39507.0,0.03750892]
[1610180968889,4.08042608,39527.0,39526.0,0.13632608]
[1610180969089,0.13632608,39527.0,39526.0,0.13632608]
[1610180969288,0.00742904,39534.0,39526.0,0.14580855]
[1610180969491,0.09589506,39537.0,39526.0,0.14580855]
[1610180969890,0.08846,39537.0,39527.0,0.00948188]
[1610180970288,3.76053613,39538.0,39527.0,0.00948188]
[1610180970289,3.7531,39538.0,39527.0,0.00948188]
[1610180970889,3.7531,39538.0,39536.0,0.13632608]
[1610180971292,3.7531,39538.0,39537.0,0.00022185]
[1610180972294,0.00743884,39538.0,39537.0,0.00022185]
[1610180972697,3.2265,39524.0,39519.0,0.00948274]
[1610180972893,0.73382608,39520.0,39519.0,0.00926089]
[1610180973493,0.73382608,39520.0,39517.0,0.0094836]
[1610180973695,0.73382608,39520.0,39516.0,0.13632608]
[1610180973696,0.73382608,39520.0,39519.0,0.00948409]
[1610180974093,0.73382608,39520.0,39518.0,0.00948427]
[1610180974294,0.73382608,39520.0,39519.0,0.00948432]
[1610180974493,0.73382608,39520.0,39519.0,0.00022189]
[1610180974694,0.73362463,39520.0,39519.0,0.00022189]
[1610180975094,0.73362463,39520.0,39511.0,0.0094848]
[1610180975293,0.73362463,39520.0,39519.0,0.00022189]
[1610180975494,0.73362463,39520.0,39512.0,0.00948537]
[1610180975895,0.73362463,39520.0,39519.0,0.00022191]
[1610180976095,0.73362463,39520.0,39513.0,0.00948605]
[1610180976296,0.73362463,39520.0,39519.0,0.00022191]
[1610180976697,0.73362463,39520.0,39514.0,0.00022191]
[1610180976898,0.583,39509.0,39502.0,0.10959]
[1610180977098,0.13632608,39515.0,39503.0,0.00926416]
[1610180977497,0.13632608,39515.0,39503.0,0.00948611]
[1610180977697,3.6892,39504.0,39501.0,0.00948844]
[1610180977898,3.6892,39504.0,39485.0,0.02803775]
[1610180978298,3.6892,39504.0,39502.0,0.00948943]
[1610180978497,0.02201576,39513.0,39502.0,0.00022198]
[1610180978699,0.00737327,39509.0,39503.0,0.000222]
[1610180978901,0.13632608,39504.0,39503.0,0.000222]
[1610180980805,0.13632608,39504.0,39503.0,0.13654808]
[1610180981406,0.13632608,39504.0,39503.0,0.14581459]
[1610180981806,0.13632608,39504.0,39503.0,0.14559259]
[1610180982206,0.13632608,39504.0,39503.0,0.14581454]
[1610180982407,0.13632608,39504.0,39503.0,0.14603649]
[1610180983007,0.13632608,39504.0,39503.0,0.13676998]
[1610180983208,3.97482608,39504.0,39503.0,0.14603593]
[1610180983408,3.97482608,39504.0,39503.0,0.00970985]
[1610180983607,3.97482608,39504.0,39503.0,0.0004439]
[1610180984014,3.97482608,39504.0,39503.0,0.00971056]
[1610180984208,3.97482608,39504.0,39503.0,0.00022195]
[1610180984408,3.97482608,39504.0,39503.0,0.00044393]
[1610180991317,4.05521608,39504.0,39503.0,0.00044393]
[1610180991520,4.06976384,39504.0,39503.0,0.00044393]
[1610180991918,4.48733259,39504.0,39503.0,0.00044393]
[1610180992119,4.48733259,39504.0,39503.0,0.00022195]
[1610180992719,5.00570702,39504.0,39503.0,0.00022195]
[1610180993121,4.48733259,39504.0,39503.0,0.00022195]
[1610180994124,4.06976331,39504.0,39503.0,0.00022195]
[1610180994522,4.05521608,39504.0,39503.0,0.00022195]
[1610180995623,4.05521608,39504.0,39503.0,0.00044398]
[1610180995825,4.05521608,39504.0,39503.0,0.00022195]
[1610180999926,4.05521608,39504.0,39503.0,0.00044398]
[1610181001932,4.07713502,39504.0,39503.0,0.00044398]
[1610181002130,4.06978064,39504.0,39503.0,0.00044398]
[1610181002531,4.48796445,39504.0,39503.0,0.00044398]
[1610181002729,4.48796445,39504.0,39503.0,0.00022203]
[1610181002930,4.06257479,39504.0,39503.0,0.00022203]
[1610181003129,4.06257479,39504.0,39489.0,0.13632608]
[1610181003130,4.06257479,39504.0,39490.0,0.00021953]
[1610181003330,4.0771568,39504.0,39503.0,0.00021953]
[1610181003631,4.0771568,39504.0,39491.0,0.00021953]
[1610181003832,4.06257479,39504.0,39491.0,0.00021953]
[1610181004032,4.06257479,39504.0,39503.0,0.00021953]
[1610181004233,4.06257479,39504.0,39490.0,0.00021953]
[1610181004435,4.07713792,39504.0,39503.0,0.00021953]
[1610181004633,4.07713792,39504.0,39490.0,0.00847442]
[1610181005036,3.94081184,39504.0,39503.0,0.00021953]
[1610181005235,3.92624871,39504.0,39491.0,0.00021953]
[1610181005435,3.92624871,39504.0,39490.0,0.00825489]
[1610181005436,3.92624871,39504.0,39490.0,0.00847442]
[1610181005835,3.92624871,39504.0,39492.0,0.00021953]
[1610181006035,3.92624871,39504.0,39491.0,0.00021953]
[1610181006235,3.92624871,39504.0,39493.0,0.00021953]
[1610181006636,3.92624871,39504.0,39492.0,0.00021953]
[1610181006838,3.92624871,39504.0,39490.0,0.00847442]
[1610181007039,3.92624871,39504.0,39493.0,0.00021953]
[1610181007438,0.00736015,39503.0,39491.0,0.00021953]
[1610181007638,3.752,39497.0,39494.0,0.00021953]
[1610181007839,0.00736015,39503.0,39492.0,0.00021953]
[1610181008042,4.0435,39497.0,39495.0,0.00021953]
[1610181008237,0.00736015,39503.0,39495.0,0.00021953]
[1610181008439,3.4466,39494.0,39493.0,0.00021953]
[1610181008637,3.4466,39494.0,39490.0,0.00825489]
[1610181008839,3.4466,39494.0,39483.0,0.00847532]
[1610181009038,3.4466,39494.0,39484.0,0.13632608]
[1610181009240,3.4466,39494.0,39491.0,0.00847528]
[1610181009438,3.4466,39494.0,39484.0,0.14480133]
[1610181009641,3.4466,39494.0,39485.0,0.00847532]
[1610181011040,0.13632608,39486.0,39485.0,0.00847532]
[1610181013241,3.4466,39494.0,39485.0,0.00847532]
[1610181013642,3.4466,39494.0,39485.0,0.00825577]
[1610181013841,3.4466,39494.0,39486.0,0.00021949]
[1610181014242,3.4466,39494.0,39485.0,0.00847526]
[1610181014441,3.4466,39494.0,39487.0,0.00021949]
[1610181014643,3.4466,39494.0,39486.0,0.00021949]
[1610181015043,3.4466,39494.0,39488.0,0.00021949]
[1610181015245,0.08039,39504.0,39493.0,0.13632608]
[1610181015445,0.00740904,39506.0,39493.0,0.13632608]
[1610181015845,0.00740904,39506.0,39494.0,0.00845959]
[1610181016846,0.02207574,39507.0,39494.0,0.00845959]
[1610181017148,0.13632608,39495.0,39494.0,0.00845959]
[1610181018650,0.0981,39505.0,39501.0,3.3541]
[1610181019050,0.0981,39505.0,39502.0,0.00845856]
[1610181019252,0.0981,39505.0,39504.0,0.13632608]
[1610181019651,0.13632608,39518.0,39504.0,0.14478286]
[1610181020253,0.13632608,39518.0,39505.0,0.00845598]
[1610181021154,0.13632608,39518.0,39517.0,0.13632608]
[1610181021559,0.13632608,39518.0,39517.0,0.14473893]
[1610181021956,0.13632608,39518.0,39517.0,0.1713154]
[1610181022457,0.13632608,39518.0,39517.0,0.14473893]
[1610181022662,0.00746581,39533.0,39517.0,0.13654536]
[1610181023057,0.00746581,39533.0,39518.0,0.00021924]
[1610181023259,0.09234,39534.0,39532.0,0.13632608]
[1610181023458,0.0074705,39537.0,39532.0,0.13632608]
[1610181023657,0.0074777,39540.0,39532.0,0.13654532]
[1610181023858,0.0074777,39540.0,39533.0,0.00021924]
[1610181024057,0.0074804,39542.0,39533.0,0.00021924]
[1610181024458,0.00747995,39544.0,39533.0,0.00021924]
[1610181025258,0.13632608,39537.0,39536.0,0.13632608]
[1610181025658,0.13632608,39537.0,39536.0,0.13654524]
[1610181026459,0.13632608,39537.0,39536.0,0.13632608]
[1610181026859,0.13632608,39537.0,39513.0,0.09975]
[1610181027058,0.13632608,39537.0,39523.0,3.7163]
[1610181027259,0.0845,39538.0,39525.0,0.13632608]
[1610181027459,0.0845,39538.0,39526.0,0.00021919]
[1610181028260,0.00748378,39537.0,39526.0,0.00021919]
[1610181028660,0.00748378,39537.0,39525.0,0.13632608]
[1610181029061,0.0845,39538.0,39526.0,0.00021919]
[1610181029260,0.13632608,39537.0,39536.0,0.13632608]
[1610181029459,0.0845,39538.0,39536.0,0.13632608]
[1610181030562,0.00749913,39542.0,39536.0,0.13632608]
[1610181031162,0.13632608,39537.0,39536.0,0.13632608]
[1610181031564,0.13632608,39537.0,39527.0,3.5928]
[1610181032363,0.13632608,39537.0,39528.0,0.00021905]
[1610181032562,0.13632608,39537.0,39527.0,3.5928]
[1610181033065,0.13632608,39537.0,39528.0,0.00021905]
[1610181033265,0.13632608,39537.0,39536.0,0.13632608]
[1610181033965,0.13632608,39537.0,39515.0,0.09912]
[1610181034170,3.92892608,39537.0,39521.0,4.179]
[1610181034567,3.92892608,39537.0,39522.0,0.00021908]
[1610181035170,0.13632608,39523.0,39522.0,0.13654516]
[1610181035367,0.13632608,39523.0,39522.0,0.13632608]
[1610181035966,0.13632608,39523.0,39522.0,0.13654518]
[1610181039770,2.9262,39524.0,39522.0,0.13654518]
[1610181040472,2.9262,39524.0,39523.0,0.0002191]
[1610181040971,0.10665,39530.0,39523.0,0.0002191]
[1610181041172,0.10665,39530.0,39526.0,0.13632608]
[1610181041372,0.1038,39538.0,39526.0,0.13632608]
[1610181041573,0.00749642,39539.0,39526.0,0.13632608]
[1610181041774,2.91439751,39540.0,39527.0,0.0002191]
[1610181042274,2.9069,39540.0,39527.0,0.0002191]
[1610181042674,0.00750152,39542.0,39527.0,0.0002191]
[1610181043077,0.32235872,39543.0,39527.0,0.0002191]
[1610181043274,0.32235872,39543.0,39532.0,0.13632608]
[1610181043474,0.30750277,39543.0,39532.0,0.13632608]
[1610181043776,0.30750277,39543.0,39533.0,0.00021908]
[1610181044279,0.3,39543.0,39533.0,0.00021908]
[1610181044781,0.3,39543.0,39533.0,4.11061908]
[1610181045180,0.13632608,39539.0,39538.0,0.13632608]
[1610181045380,0.21850608,39539.0,39538.0,0.13632608]
[1610181045581,0.21850608,39539.0,39538.0,0.13654513]
[1610181047582,0.21850608,39539.0,39538.0,0.14469123]
[1610181049386,0.21850608,39539.0,39538.0,0.00836515]
[1610181049889,0.21850608,39539.0,39534.0,0.00836519]
[1610181050088,0.21850608,39539.0,39538.0,0.00836519]
[1610181050289,0.21850608,39539.0,39535.0,0.00836523]
[1610181050588,0.21850608,39539.0,39538.0,0.00836523]
[1610181050791,0.21850608,39539.0,39536.0,0.0083652]
[1610181051188,0.21850608,39539.0,39538.0,0.00836523]
[1610181051389,0.21850608,39539.0,39537.0,0.00836515]
[1610181051788,0.21850608,39539.0,39538.0,0.00836517]
[1610181051989,0.21850608,39539.0,39537.0,0.00836514]
[1610181052189,0.21850608,39539.0,39538.0,0.00836505]
[1610181052392,0.21850608,39539.0,39537.0,0.00836448]
[1610181052689,0.21850608,39539.0,39538.0,0.00836452]
[1610181053291,0.21850608,39539.0,39537.0,0.00836487]
[1610181053492,0.21850608,39539.0,39538.0,0.00836648]
[1610181054090,0.21850608,39539.0,39531.0,0.00836569]
[1610181054289,0.21850608,39539.0,39538.0,0.0083659]
[1610181054490,0.21850608,39539.0,39532.0,0.00836557]
[1610181054790,0.21850608,39539.0,39531.0,0.00836557]
[1610181055190,0.08218,39539.0,39533.0,0.0083657]
[1610181055390,0.08218,39539.0,39532.0,0.00836548]
[1610181055591,0.08218,39539.0,39534.0,0.00836548]
[1610181055793,3.9887,39541.0,39533.0,0.00836556]
[1610181056193,3.9887,39541.0,39531.0,0.00836543]
[1610181056395,3.9887,39541.0,39534.0,0.00836535]
[1610181056695,3.9887,39541.0,39532.0,0.00836535]
[1610181056894,3.9887,39541.0,39531.0,0.0083652]
[1610181057093,4.06296,39541.0,39531.0,0.0083652]
[1610181057296,4.06296,39541.0,39537.0,0.13632608]
[1610181057696,4.06296,39541.0,39538.0,0.00836505]
[1610181059196,0.13632608,39539.0,39538.0,0.00836505]
[1610181067206,0.13632608,39539.0,39538.0,0.0348646]
[1610181069610,0.09583,39549.0,39538.0,0.0348646]
[1610181069810,0.09583,39549.0,39540.0,3.1095]
[1610181070412,0.02247687,39560.0,39541.0,0.03485249]
[1610181070614,0.00755079,39563.0,39541.0,0.03485249]
[1610181071014,0.5331452,39567.0,39541.0,0.03485249]
[1610181071015,0.00755847,39567.0,39541.0,0.03485249]
[1610181071415,0.53368706,39571.0,39566.0,0.13632608]
[1610181071416,0.00756461,39570.0,39566.0,0.13632608]
[1610181071614,0.00756461,39570.0,39568.0,4.0321]
[1610181071814,0.00756939,39572.0,39568.0,4.0321]
[1610181072216,0.14389666,39573.0,39569.0,0.00021891]
[1610181072515,0.00757422,39572.0,39569.0,0.00021891]
[1610181072716,0.10505422,39572.0,39569.0,0.00021891]
[1610181072914,0.09748,39572.0,39569.0,0.00021891]
[1610181073316,0.10505659,39572.0,39571.0,0.13632608]
[1610181073818,0.09748,39572.0,39571.0,0.13654499]
[1610181077819,0.00759145,39576.0,39571.0,0.13654499]
[1610181078119,0.00759145,39576.0,39572.0,0.00021889]
[1610181078520,0.00759145,39576.0,39571.0,0.13632608]
[1610181078720,0.11834145,39576.0,39571.0,0.13632608]
[1610181079122,0.01503045,39575.0,39571.0,0.13632608]
[1610181079320,0.00758963,39574.0,39571.0,0.13632608]
[1610181079519,0.13632608,39573.0,39571.0,0.13632608]
[1610181081324,0.4788,39572.0,39571.0,0.13632608]
[1610181081523,0.4788,39572.0,39553.0,3.8372]
[1610181081924,0.00759272,39570.0,39554.0,0.00021891]
[1610181082425,0.0075898,39567.0,39554.0,0.00021891]
[1610181082825,0.02262194,39567.0,39554.0,0.00021891]
[1610181083326,0.00758528,39566.0,39554.0,0.00021891]
[1610181083524,0.13632608,39555.0,39554.0,0.13654499]
[1610181085427,0.13632608,39559.0,39554.0,0.13654499]
[1610181085828,0.13632608,39559.0,39555.0,0.00021893]
[1610181091335,0.00757843,39563.0,39555.0,0.00021893]
[1610181091535,0.00757843,39563.0,39562.0,0.13632608]
[1610181091737,0.14390855,39565.0,39562.0,0.13654501]
[1610181092136,0.00759125,39570.0,39562.0,0.13654501]
[1610181092335,0.00759125,39570.0,39567.0,3.107]
[1610181092537,0.00759503,39572.0,39567.0,3.107]
[1610181092937,0.02264091,39574.0,39568.0,0.00021886]
[1610181093537,0.1439227,39574.0,39573.0,0.13632608]
[1610181093942,0.13632608,39574.0,39573.0,0.13654494]
[1610181098950,0.11075,39576.0,39573.0,0.56144494]
[1610181099150,0.11075,39576.0,39573.0,0.13654494]
[1610181099349,0.11075,39576.0,39575.0,2.9121]
[1610181099549,0.01505351,39578.0,39575.0,2.9121]
[1610181099550,0.02265793,39578.0,39575.0,2.9121]
[1610181099950,0.00760442,39578.0,39576.0,0.00021886]
[1610181100950,0.30758024,39580.0,39576.0,0.00021886]
[1610181101350,0.00761081,39579.0,39576.0,0.00021886]
[1610181101551,0.00761081,39579.0,39578.0,0.13632608]
[1610181101751,0.29251104,39580.0,39578.0,0.13632608]
[1610181102052,0.29251104,39580.0,39579.0,0.00021886]
[1610181102456,0.29996888,39580.0,39579.0,0.00021886]
[1610181102854,0.29250935,39580.0,39579.0,0.00021886]
[1610181104558,0.2849,39580.0,39579.0,0.00021886]
[1610181106562,0.13632608,39581.0,39579.0,0.00021886]
[1610181106761,0.00760999,39583.0,39579.0,0.00021886]
[1610181107163,0.0076129,39585.0,39579.0,0.00021886]
[1610181107464,0.00761513,39586.0,39579.0,0.00021886]
[1610181107664,0.00761513,39586.0,39585.0,4.27092608]
[1610181107863,0.02271023,39590.0,39585.0,4.27092608]
[1610181108062,0.02271023,39590.0,39585.0,4.27927772]
[1610181108464,0.02271023,39590.0,39586.0,0.00021877]
[1610181108665,0.0076274,39594.0,39586.0,0.00835127]
[1610181108865,0.00763157,39596.0,39586.0,0.00835127]
[1610181109264,0.00763157,39596.0,39586.0,0.00021877]
[1610181109467,0.00763157,39596.0,39587.0,0.00021875]
[1610181109666,0.00763157,39596.0,39595.0,0.13632608]
[1610181109965,0.02273395,39596.0,39595.0,0.13654483]
[1610181110366,0.00763157,39596.0,39595.0,0.13654483]
[1610181111368,0.02273094,39596.0,39595.0,0.13654483]
[1610181111568,0.15905702,39596.0,39595.0,0.13654483]
[1610181111768,0.15142545,39596.0,39595.0,0.00021875]
[1610181111968,0.60000008,39596.0,39595.0,0.00021875]
[1610181112368,0.58490071,39596.0,39593.0,0.00021875]
[1610181112568,0.65730071,39596.0,39595.0,0.00021875]
[1610181112869,0.65730071,39596.0,39594.0,0.00021875]
[1610181113067,0.65730071,39596.0,39593.0,0.00021875]
[1610181113267,0.00762326,39595.0,39593.0,0.00021875]
[1610181113468,0.00762326,39595.0,39592.0,4.0209]
[1610181113668,0.02271883,39595.0,39594.0,0.00021876]
[1610181113868,0.02271883,39595.0,39593.0,0.00021876]
[1610181114268,0.02271883,39595.0,39594.0,0.00021876]
[1610181114469,0.02271883,39595.0,39585.0,0.00021876]
[1610181114669,0.01509557,39595.0,39594.0,0.00021876]
[1610181115071,0.00762396,39595.0,39590.0,3.4803]
[1610181115271,0.00762396,39595.0,39594.0,0.00021876]
[1610181115474,0.21635546,39596.0,39591.0,0.00021876]
[1610181115671,0.23145938,39596.0,39595.0,0.13654484]
[1610181116171,0.23145938,39596.0,39595.0,0.13632608]
[1610181116372,0.22383,39596.0,39595.0,0.13632608]
[1610181116572,0.22383,39596.0,39595.0,0.61134484]
[1610181116773,0.21635529,39596.0,39595.0,0.61134484]
[1610181117176,0.20872608,39596.0,39595.0,0.61134484]
[1610181118375,0.20872608,39596.0,39595.0,0.61112608]
[1610181118575,0.20872608,39596.0,39595.0,0.61134481]
[1610181120978,0.0724,39596.0,39595.0,0.61134481]
[1610181121176,0.00764246,39599.0,39595.0,0.61134481]
[1610181121579,0.02277657,39600.0,39596.0,0.0002187]
[1610181121981,0.00764519,39599.0,39596.0,0.0002187]
[1610181122180,0.00764601,39600.0,39596.0,0.0002187]
[1610181123084,0.00764984,39601.0,39596.0,0.0002187]
[1610181123680,0.00764984,39601.0,39600.0,0.13632608]
[1610181124081,0.00764984,39601.0,39600.0,0.13654646]
[1610181129487,0.02283814,39601.0,39600.0,0.13654646]
[1610181130587,0.00764984,39601.0,39600.0,0.13654646]
[1610181131389,0.01518692,39601.0,39600.0,0.13654646]
[1610181131791,0.4663064,39601.0,39600.0,0.13654646]
[1610181132190,0.45111948,39601.0,39600.0,0.13654646]
[1610181133189,0.45111948,39601.0,39600.0,3.05194646]
[1610181133893,0.02285272,39601.0,39600.0,3.05194646]
[1610181134690,0.00766769,39601.0,39600.0,3.05194646]
[1610181134991,0.0151818,39601.0,39600.0,3.05194646]
[1610181136193,0.00766661,39601.0,39600.0,3.05194646]
[1610181136792,0.00766661,39601.0,39600.0,3.0607391]
[1610181136994,0.00766986,39602.0,39600.0,3.0607391]
[1610181137193,0.00766986,39602.0,39601.0,0.00901305]
[1610181137394,0.02285904,39603.0,39601.0,0.00901305]
[1610181137794,0.00766744,39602.0,39601.0,0.00901305]
[1610181140297,0.02287598,39603.0,39601.0,0.00901305]
[1610181141296,0.00769151,39602.0,39601.0,0.00901305]
[1610181141496,0.02292238,39602.0,39601.0,0.00901305]
[1610181141698,0.15924846,39602.0,39601.0,0.00901305]
[1610181141898,0.15155695,39602.0,39601.0,0.00901305]
[1610181142300,0.15155695,39602.0,39601.0,0.00022034]
[1610181142497,0.5887647,39602.0,39601.0,0.00022034]
[1610181144200,0.5887647,39602.0,39601.0,0.49072034]
[1610181144400,1.13182529,39602.0,39601.0,0.49072034]
[1610181144600,1.13182529,39602.0,39601.0,0.4995134]
[1610181144801,0.45243862,39602.0,39601.0,0.4995134]
[1610181145201,0.00771145,39607.0,39601.0,0.4995134]
[1610181145400,0.00771145,39607.0,39601.0,0.52685817]
[1610181145602,0.02304132,39618.0,39601.0,0.52685817]
[1610181145800,0.02304132,39618.0,39617.0,0.13632608]
[1610181146004,0.00774926,39627.0,39617.0,0.13632608]
[1610181146200,0.00774926,39627.0,39617.0,0.14533064]
[1610181146401,0.00776419,39634.0,39618.0,0.00900479]
[1610181146808,0.548213,39638.0,39623.0,2.8963]
[1610181146809,0.09953848,39637.0,39623.0,2.8963]
[1610181147001,0.02313848,39637.0,39628.0,0.00900395]
[1610181147202,0.02314227,39639.0,39623.0,2.8963]
[1610181147401,0.02314227,39639.0,39629.0,0.00022015]
[1610181147603,0.00775985,39637.0,39629.0,0.00022015]
[1610181147802,0.00775985,39637.0,39636.0,0.13632608]
[1610181148402,0.02312737,39638.0,39636.0,0.13632608]
[1610181148704,0.0765,39637.0,39636.0,0.13632608]
[1610181149102,0.0765,39637.0,39636.0,0.13654623]
[1610181149303,0.0077569,39639.0,39636.0,0.13654623]
[1610181149506,0.12746336,39641.0,39636.0,0.13654623]
[1610181149702,0.12746336,39641.0,39640.0,0.13632608]
[1610181149902,0.13506452,39641.0,39640.0,0.13632608]
[1610181150303,0.19451,39641.0,39640.0,0.13632608]
[1610181150502,0.11971,39641.0,39640.0,0.13632608]
[1610181150703,0.11971,39641.0,39640.0,0.13654623]
[1610181151203,0.11971,39641.0,39640.0,0.13632608]
[1610181151407,0.19531,39641.0,39640.0,0.13632608]
[1610181151804,0.11971,39641.0,39640.0,0.13632608]
[1610181154206,0.00773992,39649.0,39640.0,0.13632608]
[1610181154405,0.0753,39648.0,39640.0,0.13632608]
[1610181154807,0.10495,39648.0,39640.0,0.13632608]
[1610181155808,0.10495,39648.0,39647.0,0.13632608]
[1610181156008,0.10495,39648.0,39647.0,0.55672608]
[1610181158609,0.17945,39648.0,39647.0,0.55672608]
[1610181158810,0.10495,39648.0,39647.0,0.55672608]
[1610181159412,0.10495,39648.0,39647.0,0.13632608]
[1610181159811,0.0761,39648.0,39647.0,0.13632608]
[1610181160812,0.13632608,39653.0,39647.0,0.13632608]
[1610181161715,0.13632608,39653.0,39652.0,0.13632608]
[1610181162915,0.21072608,39653.0,39652.0,0.13632608]
[1610181163115,0.13632608,39653.0,39652.0,0.13632608]
[1610181164017,0.0077143,39656.0,39652.0,0.71732608]
[1610181164619,0.0077129,39657.0,39652.0,0.71732608]
[1610181165018,0.00771075,39658.0,39652.0,0.71732608]
[1610181165718,0.21222608,39657.0,39652.0,0.581]
[1610181165918,0.29414608,39657.0,39652.0,0.581]
[1610181166823,0.21824608,39657.0,39652.0,0.581]
[1610181167822,0.0757,39656.0,39653.0,0.13632608]
[1610181168022,0.08192,39657.0,39653.0,0.13632608]
[1610181168921,0.0756,39656.0,39653.0,0.13632608]
[1610181169121,0.0764,39655.0,39653.0,0.13632608]
[1610181169822,0.13632608,39654.0,39653.0,0.13632608]
[1610181171428,0.21242608,39654.0,39653.0,0.13654612]
[1610181171828,0.0761,39654.0,39653.0,0.13654612]
[1610181172226,0.08192,39657.0,39653.0,0.13654612]
[1610181172627,0.00770152,39663.0,39654.0,0.00022004]
[1610181172830,0.00770206,39662.0,39654.0,0.00022004]
[1610181173028,0.00800986,39662.0,39654.0,0.00022004]
[1610181173227,0.0754078,39661.0,39654.0,0.00022004]
[1610181173428,0.0003078,39661.0,39654.0,0.00022004]
[1610181173827,0.13632608,39658.0,39654.0,0.00022004]
[1610181174228,0.13632608,39658.0,39653.0,0.00022004]
[1610181175829,0.13632608,39658.0,39657.0,0.13632608]
[1610181176029,0.21222608,39658.0,39657.0,0.13632608]
[1610181177130,0.13632608,39658.0,39657.0,0.13632608]
[1610181177733,0.13663388,39658.0,39657.0,0.13654612]
[1610181178534,0.13632608,39658.0,39657.0,0.13654612]
[1610181178933,0.21202608,39658.0,39657.0,0.13654612]
[1610181179135,0.13632608,39658.0,39657.0,0.13654612]